[Event "CCT Chessable Masters Play-In 2025"]
[Site "Online"]
[Date "2025.02.17"]
[Round "3.12"]
[White "Sharapov, Evgeny"]
[Black "Sargsyan, Shant"]
[Result "0-1"]
[ECO "C49"]
[WhiteElo "2375"]
[BlackElo "2660"]
[PlyCount "96"]
[EventDate "2025.02.13"]
[EventType "swiss"]
[EventCountry "NET"]
[TimeControl "600"]
[WhiteClock "0:03:18"]
[BlackClock "0:04:34"]

1. e4 {[%emt 0:00:01]} e5 {[%emt 0:00:02]} 2. Nf3 {[%emt 0:00:02]} Nc6 {[%emt 0:00:00]} 3. Nc3 {[%emt 0:00:01]} Nf6 {[%emt 0:00:03]} 4. Bb5 {[%emt 0:00:01]} Bb4 {[%emt 0:00:03]} 5. O-O {[%emt 0:00:02]} O-O {[%emt 0:00:01]} 6. Re1 {[%emt 0:00:01]} d6 {[%emt 0:00:07]} 7. h3 {[%emt 0:00:03]} Ne7 {[%emt 0:00:07]} 8. d4 {[%emt 0:00:04]} Ng6 {[%emt 0:00:05]} 9. a3 {[%emt 0:00:09]} Bxc3 {[%emt 0:00:08]} 10. bxc3 {[%emt 0:00:01]} h6 {[%emt 0:00:01]} 11. dxe5 {[%emt 0:00:16]} dxe5 {[%emt 0:00:06]} 12. Qxd8 {[%emt 0:00:02]} Rxd8 {[%emt 0:00:00]} 13. Bd3 {[%emt 0:00:19]} Bd7 {[%emt 0:00:06]} 14. a4 {[%emt 0:00:12]} a5 {[%emt 0:00:05]} 15. c4 {[%emt 0:00:15]} Bc6 {[%emt 0:00:03]} 16. Bb2 {[%emt 0:00:09]} Nd7 {[%emt 0:00:02]} 17. g3 {[%emt 0:00:39]} f6 {[%emt 0:00:04]} 18. c3 {[%emt 0:00:02]} Nc5 {[%emt 0:00:04]} 19. Bc2 {[%emt 0:00:01]} Nf8 {[%emt 0:00:08]} 20. Re2 {[%emt 0:00:12]} Nfe6 {[%emt 0:00:01]} 21. h4 {[%emt 0:00:08]} b6 {[%emt 0:00:06]} 22. Nh2 {[%emt 0:00:36]} Be8 {[%emt 0:00:01]} 23. f3 {[%emt 0:00:05]} Nd3 {[%emt 0:00:15]} 24. Ba3 {[%emt 0:00:15]} Ndc5 {[%emt 0:00:01]} 25. Bb2 {[%emt 0:00:04]} Rd6 {[%emt 0:00:24]} 26. Nf1 {[%emt 0:00:12]} Rad8 {[%emt 0:00:01]} 27. Bc1 {[%emt 0:00:09]} g5 {[%emt 0:01:19]} 28. hxg5 {[%emt 0:00:07]} Nxg5 {[%emt 0:00:00]} 29. f4 {[%emt 0:00:24]} Bh5 {[%emt 0:00:11]} 30. Re3 {[%emt 0:00:02]} Nge6 {[%emt 0:00:16]} 31. fxe5 {[%emt 0:00:12]} fxe5 {[%emt 0:00:00]} 32. g4 {[%emt 0:00:10]} Bxg4 {[%emt 0:00:24]} 33. Rg3 {[%emt 0:00:01]} h5 {[%emt 0:00:00]} 34. Ne3 {[%emt 0:00:02]} Nf4 {[%emt 0:00:05]} 35. Nxg4 {[%emt 0:00:54]} Ne2+ {[%emt 0:00:05]} 36. Kh2 {[%emt 0:00:01]} Nxg3 {[%emt 0:00:02]} 37. Nh6+ {[%emt 0:00:01]} Kg7 {[%emt 0:00:08]} 38. Kxg3 {[%emt 0:00:07]} Rxh6 {[%emt 0:00:00]} 39. Bxh6+ {[%emt 0:00:04]} Kxh6 {[%emt 0:00:00]} 40. Rf1 {[%emt 0:00:05]} Rd2 {[%emt 0:00:09]} 41. Bb1 {[%emt 0:00:05]} Nxa4 {[%emt 0:00:15]} 42. Rf6+ {[%emt 0:00:05]} Kg7 {[%emt 0:00:07]} 43. Rf3 {[%emt 0:00:02]} Nc5 {[%emt 0:00:08]} 44. Kh4 {[%emt 0:00:05]} Kg6 {[%emt 0:00:06]} 45. Rg3+ {[%emt 0:00:03]} Kh6 {[%emt 0:00:01]} 46. Rf3 {[%emt 0:00:04]} Rh2+ {[%emt 0:00:01]} 47. Kg3 {[%emt 0:00:01]} Rb2 {[%emt 0:00:01]} 48. Bd3 {[%emt 0:00:06]} a4 {[%emt 0:00:04]} 0-1

[Event "CCT Chessable Masters Play-In 2025"]
[Site "Online"]
[Date "2025.02.17"]
[Round "3.13"]
[White "Korobov, Anton"]
[Black "Aronian, Levon"]
[Result "1/2-1/2"]
[ECO "C01"]
[WhiteElo "2627"]
[BlackElo "2745"]
[PlyCount "91"]
[EventDate "2025.02.13"]
[EventType "swiss"]
[EventCountry "NET"]
[TimeControl "600"]
[WhiteClock "0:01:09"]
[BlackClock "0:00:56"]

1. e4 {[%emt 0:01:00]} e6 {[%emt 0:00:15]} 2. d4 {[%emt 0:00:06]} d5 {[%emt 0:00:01]} 3. exd5 {[%emt 0:00:01]} exd5 {[%emt 0:00:01]} 4. Nf3 {[%emt 0:00:01]} Bd6 {[%emt 0:00:01]} 5. Bd3 {[%emt 0:00:01]} c6 {[%emt 0:00:02]} 6. O-O {[%emt 0:00:03]} Ne7 {[%emt 0:00:01]} 7. h3 {[%emt 0:00:20]} O-O {[%emt 0:00:13]} 8. Re1 {[%emt 0:00:05]} Ng6 {[%emt 0:00:46]} 9. c4 {[%emt 0:00:11]} dxc4 {[%emt 0:01:19]} 10. Bxc4 {[%emt 0:00:03]} Nd7 {[%emt 0:00:01]} 11. Nc3 {[%emt 0:00:16]} Nb6 {[%emt 0:00:02]} 12. Bb3 {[%emt 0:00:20]} Bf5 {[%emt 0:00:05]} 13. Ng5 {[%emt 0:00:44]} h6 {[%emt 0:00:14]} 14. Nge4 {[%emt 0:00:37]} Bf4 {[%emt 0:01:41]} 15. Qh5 {[%emt 0:00:47]} Bxe4 {[%emt 0:00:46]} 16. Nxe4 {[%emt 0:00:20]} Nd5 {[%emt 0:00:03]} 17. Bxd5 {[%emt 0:00:16]} Qxd5 {[%emt 0:00:53]} 18. Qxd5 {[%emt 0:00:08]} cxd5 {[%emt 0:00:01]} 19. Nc3 {[%emt 0:00:19]} Rfd8 {[%emt 0:00:10]} 20. Bxf4 {[%emt 0:00:06]} Nxf4 {[%emt 0:00:01]} 21. Re7 {[%emt 0:00:01]} Rab8 {[%emt 0:00:05]} 22. Re5 {[%emt 0:00:15]} Rbc8 {[%emt 0:00:54]} 23. Rd1 {[%emt 0:00:33]} Kf8 {[%emt 0:00:12]} 24. h4 {[%emt 0:00:23]} Ng6 {[%emt 0:00:08]} 25. Rh5 {[%emt 0:00:09]} Rc6 {[%emt 0:00:14]} 26. g3 {[%emt 0:00:07]} Rcd6 {[%emt 0:00:08]} 27. Rf5 {[%emt 0:00:07]} Ne7 {[%emt 0:00:06]} 28. Rf3 {[%emt 0:00:03]} Nc6 {[%emt 0:00:01]} 29. h5 {[%emt 0:00:07]} Ne7 {[%emt 0:00:06]} 30. Kg2 {[%emt 0:00:04]} Ng8 {[%emt 0:00:01]} 31. Re3 {[%emt 0:00:08]} Nf6 {[%emt 0:00:02]} 32. Re5 {[%emt 0:00:01]} Rb6 {[%emt 0:00:01]} 33. Rd2 {[%emt 0:00:03]} Rc6 {[%emt 0:00:01]} 34. f3 {[%emt 0:00:07]} a6 {[%emt 0:00:01]} 35. a4 {[%emt 0:00:09]} Rc4 {[%emt 0:00:05]} 36. g4 {[%emt 0:00:02]} Rb4 {[%emt 0:00:01]} 37. Kg3 {[%emt 0:00:05]} b5 {[%emt 0:00:02]} 38. axb5 {[%emt 0:00:02]} axb5 {[%emt 0:00:00]} 39. Ne2 {[%emt 0:00:20]} Rc4 {[%emt 0:00:05]} 40. Nf4 {[%emt 0:00:05]} b4 {[%emt 0:00:02]} 41. Rd3 {[%emt 0:00:04]} Rd6 {[%emt 0:00:08]} 42. Kh4 {[%emt 0:00:05]} Rc2 {[%emt 0:00:01]} 43. Rb3 {[%emt 0:00:03]} Rc4 {[%emt 0:00:01]} 44. Rd3 {[%emt 0:00:03]} Rc2 {[%emt 0:00:02]} 45. Rb3 {[%emt 0:00:00]} Rc4 {[%emt 0:00:01]} 46. Rd3 {[%emt 0:00:01]} 1/2-1/2

[Event "CCT Chessable Masters Play-In 2025"]
[Site "Online"]
[Date "2025.02.17"]
[Round "3.14"]
[White "Le, Quang Liem"]
[Black "Aravindh, Chithambaram VR."]
[Result "0-1"]
[ECO "E18"]
[WhiteElo "2739"]
[BlackElo "2729"]
[PlyCount "114"]
[EventDate "2025.02.13"]
[EventType "swiss"]
[EventCountry "NET"]
[TimeControl "600"]
[WhiteClock "0:00:07"]
[BlackClock "0:00:43"]

1. Nf3 {[%emt 0:00:01]} Nf6 {[%emt 0:00:09]} 2. c4 {[%emt 0:00:00]} b6 {[%emt 0:00:02]} 3. g3 {[%emt 0:00:03]} Bb7 {[%emt 0:00:01]} 4. Bg2 {[%emt 0:00:01]} e6 {[%emt 0:00:00]} 5. O-O {[%emt 0:00:01]} Be7 {[%emt 0:00:01]} 6. d4 {[%emt 0:00:01]} O-O {[%emt 0:00:01]} 7. Nc3 {[%emt 0:00:01]} Ne4 {[%emt 0:00:01]} 8. Bd2 {[%emt 0:00:00]} Nxd2 {[%emt 0:00:01]} 9. Qxd2 {[%emt 0:00:01]} d6 {[%emt 0:00:02]} 10. Rad1 {[%emt 0:00:05]} Nd7 {[%emt 0:00:01]} 11. e4 {[%emt 0:00:07]} a6 {[%emt 0:00:23]} 12. Rfe1 {[%emt 0:00:29]} b5 {[%emt 0:00:02]} 13. Qe2 {[%emt 0:00:48]} b4 {[%emt 0:00:24]} 14. Nb1 {[%emt 0:00:02]} c5 {[%emt 0:00:01]} 15. d5 {[%emt 0:00:01]} e5 {[%emt 0:00:02]} 16. Bh3 {[%emt 0:00:11]} g6 {[%emt 0:00:12]} 17. Nbd2 {[%emt 0:00:06]} Bc8 {[%emt 0:00:29]} 18. Nf1 {[%emt 0:00:25]} a5 {[%emt 0:00:09]} 19. Ne3 {[%emt 0:00:06]} a4 {[%emt 0:00:00]} 20. Rf1 {[%emt 0:00:05]} Ra7 {[%emt 0:00:09]} 21. Nd2 {[%emt 0:00:07]} Bf6 {[%emt 0:00:07]} 22. Kh1 {[%emt 0:00:42]} Bg7 {[%emt 0:00:16]} 23. b3 {[%emt 0:00:11]} Nb6 {[%emt 0:00:34]} 24. Bxc8 {[%emt 0:00:02]} Qxc8 {[%emt 0:00:00]} 25. f4 {[%emt 0:00:04]} axb3 {[%emt 0:00:21]} 26. axb3 {[%emt 0:00:01]} exf4 {[%emt 0:00:01]} 27. gxf4 {[%emt 0:00:00]} Ra2 {[%emt 0:00:09]} 28. Qd3 {[%emt 0:00:30]} Nd7 {[%emt 0:00:45]} 29. Rf2 {[%emt 0:00:22]} Re8 {[%emt 0:00:45]} 30. Rdf1 {[%emt 0:00:09]} Bd4 {[%emt 0:00:11]} 31. Nf3 {[%emt 0:00:04]} Rxf2 {[%emt 0:00:03]} 32. Rxf2 {[%emt 0:00:00]} Bxe3 {[%emt 0:00:01]} 33. Qxe3 {[%emt 0:00:00]} Nf6 {[%emt 0:00:01]} 34. e5 {[%emt 0:02:22]} Ng4 {[%emt 0:00:04]} 35. Qd2 {[%emt 0:00:01]} Nxf2+ {[%emt 0:00:08]} 36. Qxf2 {[%emt 0:00:00]} Qf5 {[%emt 0:00:10]} 37. Qe3 {[%emt 0:00:01]} Qc2 {[%emt 0:00:30]} 38. Kg1 {[%emt 0:00:06]} Qc3 {[%emt 0:00:41]} 39. Kf2 {[%emt 0:00:13]} Qxe3+ {[%emt 0:00:16]} 40. Kxe3 {[%emt 0:00:00]} f6 {[%emt 0:00:02]} 41. Kd3 {[%emt 0:00:35]} Kf7 {[%emt 0:00:23]} 42. exd6 {[%emt 0:00:14]} Rd8 {[%emt 0:00:01]} 43. Ke4 {[%emt 0:00:23]} Rxd6 {[%emt 0:00:20]} 44. Ne1 {[%emt 0:00:01]} Rd8 {[%emt 0:00:02]} 45. Nd3 {[%emt 0:00:01]} Re8+ {[%emt 0:00:00]} 46. Kf3 {[%emt 0:00:02]} Rc8 {[%emt 0:00:01]} 47. f5 {[%emt 0:00:08]} Ke7 {[%emt 0:00:03]} 48. Nf2 {[%emt 0:00:32]} Kd6 {[%emt 0:00:09]} 49. Ng4 {[%emt 0:00:08]} Rf8 {[%emt 0:00:27]} 50. Kf4 {[%emt 0:00:01]} g5+ {[%emt 0:00:10]} 51. Kf3 {[%emt 0:00:01]} h5 {[%emt 0:00:02]} 52. Nf2 {[%emt 0:00:00]} Ke5 {[%emt 0:00:02]} 53. Ne4 {[%emt 0:00:04]} Rc8 {[%emt 0:00:01]} 54. h3 {[%emt 0:00:03]} g4+ {[%emt 0:00:06]} 55. hxg4 {[%emt 0:00:00]} hxg4+ {[%emt 0:00:00]} 56. Ke3 {[%emt 0:00:01]} Rg8 {[%emt 0:00:11]} 57. Ng3 {[%emt 0:00:10]} Rh8 {[%emt 0:00:04]} 0-1

[Event "CCT Chessable Masters Play-In 2025"]
[Site "Online"]
[Date "2025.02.17"]
[Round "3.15"]
[White "Alekseev, Evgeny"]
[Black "Lazavik, Denis"]
[Result "0-1"]
[ECO "B30"]
[WhiteElo "2505"]
[BlackElo "2572"]
[PlyCount "164"]
[EventDate "2025.02.13"]
[EventType "swiss"]
[EventCountry "NET"]
[TimeControl "600"]
[BlackClock "0:00:09"]

1. e4 {[%emt 0:00:01]} c5 {[%emt 0:00:01]} 2. Nf3 {[%emt 0:00:01]} Nc6 {[%emt 0:00:02]} 3. Bb5 {[%emt 0:00:03]} e6 {[%emt 0:00:01]} 4. Bxc6 {[%emt 0:00:02]} bxc6 {[%emt 0:00:01]} 5. d3 {[%emt 0:00:00]} Qc7 {[%emt 0:00:05]} 6. O-O {[%emt 0:00:08]} Ne7 {[%emt 0:00:02]} 7. c3 {[%emt 0:00:31]} e5 {[%emt 0:00:09]} 8. d4 {[%emt 0:00:04]} d6 {[%emt 0:00:01]} 9. dxe5 {[%emt 0:00:12]} dxe5 {[%emt 0:00:01]} 10. Be3 {[%emt 0:00:08]} Ng6 {[%emt 0:00:01]} 11. Nbd2 {[%emt 0:00:05]} Be7 {[%emt 0:00:02]} 12. Qa4 {[%emt 0:00:07]} O-O {[%emt 0:00:10]} 13. Nc4 {[%emt 0:01:15]} Be6 {[%emt 0:00:16]} 14. Qa5 {[%emt 0:00:30]} Qxa5 {[%emt 0:01:06]} 15. Nxa5 {[%emt 0:00:02]} Rfc8 {[%emt 0:00:01]} 16. b3 {[%emt 0:00:21]} f6 {[%emt 0:00:10]} 17. Nb7 {[%emt 0:00:33]} c4 {[%emt 0:00:15]} 18. b4 {[%emt 0:00:01]} Rc7 {[%emt 0:00:14]} 19. Na5 {[%emt 0:00:06]} Rb8 {[%emt 0:01:14]} 20. a4 {[%emt 0:00:12]} a6 {[%emt 0:00:05]} 21. Rfb1 {[%emt 0:00:06]} Bd7 {[%emt 0:00:50]} 22. Nxc4 {[%emt 0:00:44]} c5 {[%emt 0:00:02]} 23. bxc5 {[%emt 0:00:05]} Rxb1+ {[%emt 0:00:19]} 24. Rxb1 {[%emt 0:00:01]} Bxa4 {[%emt 0:00:35]} 25. Nd6 {[%emt 0:00:10]} Bxd6 {[%emt 0:00:20]} 26. cxd6 {[%emt 0:00:02]} Rxc3 {[%emt 0:00:01]} 27. h4 {[%emt 0:00:32]} Nf8 {[%emt 0:00:25]} 28. Rb8 {[%emt 0:00:08]} Kf7 {[%emt 0:00:03]} 29. h5 {[%emt 0:00:21]} Bd7 {[%emt 0:00:17]} 30. Nh4 {[%emt 0:00:31]} Rc6 {[%emt 0:00:09]} 31. Nf5 {[%emt 0:00:18]} Bxf5 {[%emt 0:00:45]} 32. exf5 {[%emt 0:00:00]} Rxd6 {[%emt 0:00:00]} 33. h6 {[%emt 0:00:24]} gxh6 {[%emt 0:00:14]} 34. Bxh6 {[%emt 0:00:04]} Nd7 {[%emt 0:00:01]} 35. Ra8 {[%emt 0:00:18]} e4 {[%emt 0:00:08]} 36. Ra7 {[%emt 0:00:05]} Ke7 {[%emt 0:00:05]} 37. Bf4 {[%emt 0:00:10]} Rd5 {[%emt 0:00:03]} 38. g4 {[%emt 0:00:02]} h5 {[%emt 0:00:07]} 39. gxh5 {[%emt 0:00:10]} Rxf5 {[%emt 0:00:01]} 40. Be3 {[%emt 0:00:04]} Rxh5 {[%emt 0:00:01]} 41. Rxa6 {[%emt 0:00:01]} Ne5 {[%emt 0:00:02]} 42. Kg2 {[%emt 0:00:03]} Rh4 {[%emt 0:00:05]} 43. Kg3 {[%emt 0:00:05]} Rg4+ {[%emt 0:00:03]} 44. Kh3 {[%emt 0:00:00]} Rg6 {[%emt 0:00:08]} 45. Ra4 {[%emt 0:00:05]} f5 {[%emt 0:00:15]} 46. Ra5 {[%emt 0:00:01]} Ke6 {[%emt 0:00:02]} 47. Ra6+ {[%emt 0:00:03]} Kd5 {[%emt 0:00:04]} 48. Ra5+ {[%emt 0:00:02]} Ke6 {[%emt 0:00:00]} 49. Ra6+ {[%emt 0:00:01]} Kf7 {[%emt 0:00:01]} 50. Ra5 {[%emt 0:00:01]} Re6 {[%emt 0:00:06]} 51. Bf4 {[%emt 0:00:02]} Nd3 {[%emt 0:00:02]} 52. Rxf5+ {[%emt 0:00:02]} Kg6 {[%emt 0:00:00]} 53. Rg5+ {[%emt 0:00:01]} Kf6 {[%emt 0:00:01]} 54. Be3 {[%emt 0:00:10]} Nxf2+ {[%emt 0:00:03]} 55. Kh4 {[%emt 0:00:01]} Nd3 {[%emt 0:00:01]} 56. Kg4 {[%emt 0:00:03]} Re8 {[%emt 0:00:10]} 57. Rf5+ {[%emt 0:00:03]} Ke6 {[%emt 0:00:00]} 58. Rg5 {[%emt 0:00:01]} Rf8 {[%emt 0:00:03]} 59. Rg6+ {[%emt 0:00:02]} Kd5 {[%emt 0:00:00]} 60. Rg5+ {[%emt 0:00:01]} Ne5+ {[%emt 0:00:01]} 61. Kh4 {[%emt 0:00:02]} Ke6 {[%emt 0:00:01]} 62. Rg7 {[%emt 0:00:03]} Rf3 {[%emt 0:00:04]} 63. Bg5 {[%emt 0:00:01]} Rf1 {[%emt 0:00:03]} 64. Kg3 {[%emt 0:00:02]} Nf3 {[%emt 0:00:01]} 65. Be3 {[%emt 0:00:01]} Ne5 {[%emt 0:00:02]} 66. Kg2 {[%emt 0:00:02]} Rf3 {[%emt 0:00:00]} 67. Bf2 {[%emt 0:00:01]} Nd3 {[%emt 0:00:01]} 68. Bg3 {[%emt 0:00:01]} Kd5 {[%emt 0:00:01]} 69. Rd7+ {[%emt 0:00:01]} Kc4 {[%emt 0:00:00]} 70. Re7 {[%emt 0:00:01]} Kd4 {[%emt 0:00:01]} 71. Rd7+ {[%emt 0:00:01]} Ke3 {[%emt 0:00:00]} 72. Ra7 {[%emt 0:00:02]} Rf5 {[%emt 0:00:01]} 73. Ra1 {[%emt 0:00:03]} Rg5 {[%emt 0:00:01]} 74. Kh3 {[%emt 0:00:01]} Rg6 {[%emt 0:00:00]} 75. Kh2 {[%emt 0:00:01]} Kf3 {[%emt 0:00:01]} 76. Rf1+ {[%emt 0:00:02]} Ke2 {[%emt 0:00:00]} 77. Rf7 {[%emt 0:00:01]} e3 {[%emt 0:00:01]} 78. Kg2 {[%emt 0:00:01]} Ne1+ {[%emt 0:00:01]} 79. Kh3 {[%emt 0:00:01]} Nf3 {[%emt 0:00:00]} 80. Ra7 {[%emt 0:00:01]} Ng5+ {[%emt 0:00:01]} 81. Kh2 {[%emt 0:00:02]} Ne4 {[%emt 0:00:01]} 82. Bh4 Kf3 {[%emt 0:00:00]} 0-1

[Event "CCT Chessable Masters Play-In 2025"]
[Site "Online"]
[Date "2025.02.17"]
[Round "3.16"]
[White "Antipov, Mikhail Al."]
[Black "Artemiev, Vladislav"]
[Result "1/2-1/2"]
[ECO "C55"]
[WhiteElo "2571"]
[BlackElo "2691"]
[PlyCount "80"]
[EventDate "2025.02.13"]
[EventType "swiss"]
[EventCountry "NET"]
[TimeControl "600"]
[WhiteClock "0:03:47"]
[BlackClock "0:01:56"]

1. e4 {[%emt 0:00:01]} e5 {[%emt 0:00:15]} 2. Nf3 {[%emt 0:00:01]} Nc6 {[%emt 0:00:05]} 3. Bc4 {[%emt 0:00:01]} Nf6 {[%emt 0:00:02]} 4. d3 {[%emt 0:00:01]} Be7 {[%emt 0:00:02]} 5. Nc3 {[%emt 0:00:03]} O-O {[%emt 0:00:05]} 6. a4 {[%emt 0:00:00]} d6 {[%emt 0:00:04]} 7. a5 {[%emt 0:00:02]} Be6 {[%emt 0:00:05]} 8. a6 {[%emt 0:00:00]} b6 {[%emt 0:00:03]} 9. Nd5 {[%emt 0:00:03]} Bxd5 {[%emt 0:00:15]} 10. exd5 {[%emt 0:00:00]} Nb4 {[%emt 0:00:02]} 11. c3 {[%emt 0:00:00]} Nbxd5 {[%emt 0:00:01]} 12. Bb5 {[%emt 0:00:01]} c5 {[%emt 0:00:07]} 13. O-O {[%emt 0:00:13]} Rc8 {[%emt 0:00:24]} 14. Re1 {[%emt 0:00:02]} Nd7 {[%emt 0:00:18]} 15. d4 {[%emt 0:00:12]} exd4 {[%emt 0:00:10]} 16. cxd4 {[%emt 0:00:00]} Nb8 {[%emt 0:00:12]} 17. dxc5 {[%emt 0:00:57]} dxc5 {[%emt 0:00:02]} 18. Ne5 {[%emt 0:00:07]} Nc7 {[%emt 0:00:22]} 19. Bd3 {[%emt 0:00:03]} Bf6 {[%emt 0:00:32]} 20. Bf4 {[%emt 0:01:27]} Ne6 {[%emt 0:01:02]} 21. Bg3 {[%emt 0:00:03]} Bxe5 {[%emt 0:00:44]} 22. Rxe5 {[%emt 0:00:04]} c4 {[%emt 0:00:05]} 23. Rd5 {[%emt 0:00:31]} cxd3 {[%emt 0:00:17]} 24. Rxd8 {[%emt 0:00:01]} Rfxd8 {[%emt 0:00:00]} 25. Bxb8 {[%emt 0:00:01]} Rxb8 {[%emt 0:00:01]} 26. Rc1 {[%emt 0:00:10]} Rbc8 {[%emt 0:00:36]} 27. Rxc8 {[%emt 0:00:14]} Rxc8 {[%emt 0:00:01]} 28. Kf1 {[%emt 0:00:29]} Rd8 {[%emt 0:00:07]} 29. Qd2 {[%emt 0:00:03]} Nc5 {[%emt 0:00:11]} 30. Ke1 {[%emt 0:00:02]} Nxa6 {[%emt 0:00:09]} 31. b4 {[%emt 0:00:32]} Nc7 {[%emt 0:00:14]} 32. Qc3 {[%emt 0:00:05]} Ne6 {[%emt 0:00:42]} 33. Qa3 {[%emt 0:00:04]} d2+ {[%emt 0:00:38]} 34. Kd1 {[%emt 0:00:02]} a5 {[%emt 0:00:01]} 35. bxa5 {[%emt 0:00:09]} bxa5 {[%emt 0:00:00]} 36. Qxa5 {[%emt 0:00:01]} g6 {[%emt 0:00:03]} 37. f4 {[%emt 0:00:18]} Rd4 {[%emt 0:00:02]} 38. f5 {[%emt 0:00:04]} gxf5 {[%emt 0:00:01]} 39. Qxf5 {[%emt 0:00:01]} Kg7 {[%emt 0:00:01]} 40. g3 {[%emt 0:00:05]} h6 {[%emt 0:00:03]} 1/2-1/2

[Event "CCT Chessable Masters Play-In 2025"]
[Site "Online"]
[Date "2025.02.17"]
[Round "3.17"]
[White "Svane, Rasmus"]
[Black "Yu, Yangyi"]
[Result "1/2-1/2"]
[ECO "B07"]
[WhiteElo "2621"]
[BlackElo "2715"]
[PlyCount "92"]
[EventDate "2025.02.13"]
[EventType "swiss"]
[EventCountry "NET"]
[TimeControl "600"]
[WhiteClock "0:00:52"]
[BlackClock "0:01:01"]

1. Nf3 {[%emt 0:00:01]} Nf6 {[%emt 0:00:06]} 2. g3 {[%emt 0:00:01]} g6 {[%emt 0:00:03]} 3. Bg2 {[%emt 0:00:00]} Bg7 {[%emt 0:00:01]} 4. O-O {[%emt 0:00:00]} O-O {[%emt 0:00:01]} 5. d4 {[%emt 0:00:01]} d6 {[%emt 0:00:00]} 6. Re1 {[%emt 0:00:00]} Nbd7 {[%emt 0:00:03]} 7. e4 {[%emt 0:00:01]} e5 {[%emt 0:00:01]} 8. Nc3 {[%emt 0:00:01]} c6 {[%emt 0:00:01]} 9. a4 {[%emt 0:00:00]} a5 {[%emt 0:00:07]} 10. h3 {[%emt 0:00:02]} Re8 {[%emt 0:00:01]} 11. Bg5 {[%emt 0:00:14]} h6 {[%emt 0:00:04]} 12. Be3 {[%emt 0:00:01]} exd4 {[%emt 0:00:24]} 13. Bxd4 {[%emt 0:00:02]} Qc7 {[%emt 0:00:03]} 14. Nd2 {[%emt 0:00:12]} b6 {[%emt 0:00:35]} 15. f4 {[%emt 0:01:08]} Ba6 {[%emt 0:00:07]} 16. Qf3 {[%emt 0:00:03]} Rad8 {[%emt 0:00:02]} 17. Rad1 {[%emt 0:00:03]} b5 {[%emt 0:00:12]} 18. Bf1 {[%emt 0:00:56]} Qb8 {[%emt 0:00:42]} 19. Nb3 {[%emt 0:00:21]} bxa4 {[%emt 0:00:25]} 20. Nxa5 {[%emt 0:01:01]} Bxf1 {[%emt 0:01:03]} 21. Rxf1 {[%emt 0:00:03]} Qc7 {[%emt 0:00:47]} 22. Nc4 {[%emt 0:00:04]} d5 {[%emt 0:00:19]} 23. exd5 {[%emt 0:00:03]} cxd5 {[%emt 0:00:01]} 24. Ne5 {[%emt 0:00:18]} Nxe5 {[%emt 0:00:06]} 25. fxe5 {[%emt 0:00:26]} Ne4 {[%emt 0:00:02]} 26. Nxd5 {[%emt 0:00:11]} Rxd5 {[%emt 0:00:04]} 27. Qxe4 {[%emt 0:00:02]} Red8 {[%emt 0:00:24]} 28. c3 {[%emt 0:00:09]} Qd7 {[%emt 0:00:28]} 29. e6 {[%emt 0:01:41]} Qxe6 {[%emt 0:00:02]} 30. Qxe6 {[%emt 0:00:01]} fxe6 {[%emt 0:00:00]} 31. Rde1 {[%emt 0:00:02]} R8d6 {[%emt 0:00:19]} 32. Bxg7 {[%emt 0:00:05]} Kxg7 {[%emt 0:00:00]} 33. Re4 {[%emt 0:00:07]} Ra6 {[%emt 0:00:23]} 34. Rf2 {[%emt 0:00:22]} Rd3 {[%emt 0:00:17]} 35. Kg2 {[%emt 0:00:01]} a3 {[%emt 0:00:01]} 36. bxa3 {[%emt 0:00:02]} Rxc3 {[%emt 0:00:05]} 37. a4 {[%emt 0:00:38]} Ra3 {[%emt 0:00:01]} 38. Rc4 {[%emt 0:00:09]} Ra7 {[%emt 0:00:01]} 39. Re2 {[%emt 0:00:05]} Rb7 {[%emt 0:00:32]} 40. h4 {[%emt 0:00:11]} Rbb3 {[%emt 0:00:09]} 41. Rg4 {[%emt 0:00:02]} Rb6 {[%emt 0:00:33]} 42. Rge4 {[%emt 0:00:07]} h5 {[%emt 0:00:08]} 43. R4e3 {[%emt 0:00:08]} Rxa4 {[%emt 0:00:12]} 44. Rxe6 {[%emt 0:00:01]} Rxe6 {[%emt 0:00:02]} 45. Rxe6 {[%emt 0:00:00]} Ra2+ {[%emt 0:00:01]} 46. Kf3 {[%emt 0:00:02]} Ra3+ {[%emt 0:00:01]} 1/2-1/2

[Event "CCT Chessable Masters Play-In 2025"]
[Site "Online"]
[Date "2025.02.17"]
[Round "3.18"]
[White "Wei, Yi"]
[Black "Ter-Sahakyan, Samvel"]
[Result "1-0"]
[ECO "B31"]
[WhiteElo "2755"]
[BlackElo "2611"]
[PlyCount "49"]
[EventDate "2025.02.13"]
[EventType "swiss"]
[EventCountry "NET"]
[TimeControl "600"]
[WhiteClock "0:05:09"]
[BlackClock "0:02:39"]

1. e4 {[%emt 0:00:02]} c5 {[%emt 0:00:02]} 2. Be2 {[%emt 0:00:04]} Nc6 {[%emt 0:00:03]} 3. d3 {[%emt 0:00:02]} d5 {[%emt 0:00:04]} 4. exd5 {[%emt 0:00:27]} Qxd5 {[%emt 0:00:02]} 5. Nc3 {[%emt 0:00:05]} Qd7 {[%emt 0:00:06]} 6. Be3 {[%emt 0:00:13]} e6 {[%emt 0:00:20]} 7. Nf3 {[%emt 0:00:03]} Nf6 {[%emt 0:00:02]} 8. h3 {[%emt 0:00:28]} Nd4 {[%emt 0:00:55]} 9. O-O {[%emt 0:00:12]} Be7 {[%emt 0:00:05]} 10. a4 {[%emt 0:00:16]} O-O {[%emt 0:00:10]} 11. Qd2 {[%emt 0:00:11]} Nxe2+ {[%emt 0:00:16]} 12. Qxe2 {[%emt 0:00:01]} b6 {[%emt 0:00:01]} 13. Ne5 {[%emt 0:00:02]} Qb7 {[%emt 0:01:02]} 14. a5 {[%emt 0:00:05]} Nd5 {[%emt 0:00:23]} 15. Bd2 {[%emt 0:00:45]} Nb4 {[%emt 0:01:00]} 16. Be3 {[%emt 0:00:39]} Nd5 {[%emt 0:00:30]} 17. f4 {[%emt 0:00:10]} Nxe3 {[%emt 0:00:18]} 18. Qxe3 {[%emt 0:00:01]} b5 {[%emt 0:00:02]} 19. a6 {[%emt 0:00:13]} Qb6 {[%emt 0:00:03]} 20. Qe4 {[%emt 0:00:03]} Bxa6 {[%emt 0:01:14]} 21. Nd7 {[%emt 0:00:09]} Qd6 {[%emt 0:00:02]} 22. Nxf8 {[%emt 0:00:05]} Rxf8 {[%emt 0:00:00]} 23. Ra2 {[%emt 0:00:17]} Rc8 {[%emt 0:00:24]} 24. Rfa1 {[%emt 0:00:13]} Rc6 {[%emt 0:00:17]} 25. Qe5 {[%emt 0:00:05]} 1-0